[Event "*** SCC Grand Prix: Titled Tuesday Blitz"]
[Site "Chess.com"]
[Date "2020.07.14"]
[Round "3"]
[White "Rish_97"]
[Black "Tashik"]
[Result "1-0"]
[WhiteElo "2681"]
[BlackElo "2416"]
[TimeControl "180+1"]
[EndTime "10:29:57 PDT"]
[Termination "Rish_97 won on time"]

1. d4 {[%clk 0:02:59.8]} 1... Nf6 {[%clk 0:02:59.4]} 2. Nf3 {[%clk 0:03:00]}
2... e6 {[%clk 0:02:59.1]} 3. Bf4 {[%clk 0:02:54.7]} 3... d5 {[%clk 0:02:58.9]}
4. e3 {[%clk 0:02:54.8]} 4... Bd6 {[%clk 0:02:59.4]} 5. Nbd2 {[%clk 0:02:55.1]}
5... O-O {[%clk 0:02:57.7]} 6. Bd3 {[%clk 0:02:53.2]} 6... c5 {[%clk 0:02:58.1]}
7. dxc5 {[%clk 0:02:33.7]} 7... Bxf4 {[%clk 0:02:46.3]} 8. exf4 {[%clk
0:02:32.6]} 8... Qc7 {[%clk 0:02:46.7]} 9. g3 {[%clk 0:02:31.4]} 9... Qxc5
{[%clk 0:02:46.1]} 10. O-O {[%clk 0:02:31.3]} 10... b6 {[%clk 0:02:44.8]} 11.
Qe2 {[%clk 0:02:28.6]} 11... a5 {[%clk 0:02:43.4]} 12. Nb3 {[%clk 0:02:28.8]}
12... Qc7 {[%clk 0:02:30]} 13. Nbd4 {[%clk 0:02:26.6]} 13... Ba6 {[%clk
0:02:25.2]} 14. a4 {[%clk 0:02:17.3]} 14... Ne4 {[%clk 0:01:52.1]} 15. Ne5
{[%clk 0:02:04.7]} 15... Bxd3 {[%clk 0:01:32.3]} 16. cxd3 {[%clk 0:02:03.8]}
16... Nc5 {[%clk 0:01:32.9]} 17. Nb5 {[%clk 0:01:40.8]} 17... Qe7 {[%clk
0:01:29.5]} 18. d4 {[%clk 0:01:40.6]} 18... Ne4 {[%clk 0:01:24.5]} 19. f3 {[%clk
0:01:40.9]} 19... Nd6 {[%clk 0:01:24.2]} 20. Rfc1 {[%clk 0:01:41.4]} 20... Na6
{[%clk 0:01:10.5]} 21. Rc6 {[%clk 0:01:13.1]} 21... Nxb5 {[%clk 0:01:01.2]} 22.
Qxb5 {[%clk 0:01:09.9]} 22... Nb4 {[%clk 0:00:48.5]} 23. Rxb6 {[%clk 0:01:03.2]}
23... Rfc8 {[%clk 0:00:18.7]} 24. Rb7 {[%clk 0:00:55.2]} 24... Qe8 {[%clk
0:00:08.2]} 25. Qxe8+ {[%clk 0:00:38.7]} 25... Rxe8 {[%clk 0:00:09.1]} 26. Rc1
{[%clk 0:00:33.3]} 26... f6 {[%clk 0:00:07.9]} 27. Ng4 {[%clk 0:00:20.2]} 27...
Rec8 {[%clk 0:00:08]} 28. Rc3 {[%clk 0:00:17.2]} 28... Rxc3 {[%clk 0:00:06.5]}
29. bxc3 {[%clk 0:00:18.1]} 29... Na2 {[%clk 0:00:06.7]} 30. Rb3 {[%clk
0:00:13.2]} 30... Rc8 {[%clk 0:00:07.2]} 31. Nf2 {[%clk 0:00:12.3]} 31... Nxc3
{[%clk 0:00:07.4]} 32. Nd3 {[%clk 0:00:10.9]} 32... Nxa4 {[%clk 0:00:07.4]} 33.
Ra3 {[%clk 0:00:11]} 33... Nc3 {[%clk 0:00:07.3]} 34. Rxa5 {[%clk 0:00:10.8]}
34... Ne2+ {[%clk 0:00:07.9]} 35. Kf2 {[%clk 0:00:11.4]} 35... Nxd4 {[%clk
0:00:08.8]} 36. Ke3 {[%clk 0:00:09.5]} 36... Nf5+ {[%clk 0:00:08.9]} 37. Kd2
{[%clk 0:00:08.9]} 37... Rc7 {[%clk 0:00:09.4]} 38. Rc5 {[%clk 0:00:09]} 38...
Rxc5 {[%clk 0:00:09]} 39. Nxc5 {[%clk 0:00:09.9]} 39... Kf7 {[%clk 0:00:09.6]}
40. Nd3 {[%clk 0:00:10]} 40... Nd6 {[%clk 0:00:10.1]} 41. Ke3 {[%clk 0:00:10.1]}
41... Nc4+ {[%clk 0:00:10.3]} 42. Kd4 {[%clk 0:00:10.1]} 42... Nd6 {[%clk
0:00:10.2]} 43. g4 {[%clk 0:00:08.4]} 43... Nb5+ {[%clk 0:00:08.2]} 44. Kc5
{[%clk 0:00:08.3]} 44... Nc7 {[%clk 0:00:08.2]} 45. Kc6 {[%clk 0:00:07.9]} 45...
Ne8 {[%clk 0:00:08.3]} 46. Kd7 {[%clk 0:00:07.9]} 46... g6 {[%clk 0:00:04.8]}
47. Nc5 {[%clk 0:00:06.6]} 47... Ng7 {[%clk 0:00:05.3]} 48. Kd6 {[%clk 0:00:07]}
48... Ne8+ {[%clk 0:00:04.8]} 49. Kd7 {[%clk 0:00:07]} 49... Ng7 {[%clk
0:00:05.7]} 50. Nb7 {[%clk 0:00:05.4]} 50... e5 {[%clk 0:00:04.6]} 51. Nd6+
{[%clk 0:00:04.9]} 51... Kf8 {[%clk 0:00:04.3]} 52. fxe5 {[%clk 0:00:05.2]}
52... fxe5 {[%clk 0:00:05]} 53. Kc6 {[%clk 0:00:06.1]} 53... d4 {[%clk
0:00:05.1]} 54. Kd5 {[%clk 0:00:06.6]} 54... d3 {[%clk 0:00:05.1]} 55. Ne4
{[%clk 0:00:07]} 55... Ke7 {[%clk 0:00:03.4]} 56. Kxe5 {[%clk 0:00:07.1]} 56...
Ne6 {[%clk 0:00:04.1]} 57. Kd5 {[%clk 0:00:07.3]} 57... Nc5 {[%clk 0:00:03.1]}
58. Kxc5 {[%clk 0:00:06.3]} 1-0

[Event "*** SCC Grand Prix: Titled Tuesday Blitz"]
[Site "Chess.com"]
[Date "2020.07.14"]
[Round "3"]
[White "MusicCityMaster"]
[Black "wannabe2700"]
[Result "0-1"]
[WhiteElo "2414"]
[BlackElo "2659"]
[TimeControl "180+1"]
[EndTime "10:30:01 PDT"]
[Termination "wannabe2700 won on time"]

1. e4 {[%clk 0:03:00.9]} 1... c6 {[%clk 0:02:56]} 2. d4 {[%clk 0:03:00]} 2... d5
{[%clk 0:02:56.9]} 3. Nc3 {[%clk 0:02:59.2]} 3... g6 {[%clk 0:02:55.9]} 4. Nf3
{[%clk 0:02:57.3]} 4... Bg7 {[%clk 0:02:55.2]} 5. h3 {[%clk 0:02:53.7]} 5...
dxe4 {[%clk 0:02:52.7]} 6. Nxe4 {[%clk 0:02:53.5]} 6... Nf6 {[%clk 0:02:53.4]}
7. Nxf6+ {[%clk 0:02:50.4]} 7... exf6 {[%clk 0:02:54.3]} 8. Bc4 {[%clk
0:02:48.6]} 8... O-O {[%clk 0:02:53.5]} 9. O-O {[%clk 0:02:48.6]} 9... Nd7
{[%clk 0:02:52.9]} 10. b3 {[%clk 0:02:42.2]} 10... Nb6 {[%clk 0:02:52.6]} 11.
Be2 {[%clk 0:02:38.9]} 11... f5 {[%clk 0:02:52]} 12. Bb2 {[%clk 0:02:38.8]}
12... Re8 {[%clk 0:02:50.8]} 13. c4 {[%clk 0:02:33.6]} 13... f4 {[%clk
0:02:47.6]} 14. Re1 {[%clk 0:02:26.5]} 14... Bf5 {[%clk 0:02:44.6]} 15. Qd2
{[%clk 0:02:22.3]} 15... g5 {[%clk 0:02:43.3]} 16. Rad1 {[%clk 0:02:18.9]} 16...
Qf6 {[%clk 0:02:40.4]} 17. Ne5 {[%clk 0:02:17.8]} 17... Rad8 {[%clk 0:02:38.3]}
18. Qa5 {[%clk 0:02:11]} 18... Nc8 {[%clk 0:02:29.4]} 19. Bg4 {[%clk 0:01:51.3]}
19... Bxg4 {[%clk 0:02:14.9]} 20. hxg4 {[%clk 0:01:37.7]} 20... Qe6 {[%clk
0:02:05]} 21. Rd3 {[%clk 0:01:03.1]} 21... f6 {[%clk 0:01:52.2]} 22. Nf3 {[%clk
0:00:58.3]} 22... Qxg4 {[%clk 0:01:47.6]} 23. d5 {[%clk 0:00:51.4]} 23... Rxe1+
{[%clk 0:01:40.8]} 24. Qxe1 {[%clk 0:00:49.1]} 24... cxd5 {[%clk 0:01:35.7]} 25.
cxd5 {[%clk 0:00:48.7]} 25... Nb6 {[%clk 0:01:33.1]} 26. d6 {[%clk 0:00:43.8]}
26... Qd7 {[%clk 0:01:24.1]} 27. a4 {[%clk 0:00:35.2]} 27... Re8 {[%clk
0:01:14.1]} 28. Qd2 {[%clk 0:00:30.9]} 28... Re6 {[%clk 0:01:06.2]} 29. Ba3
{[%clk 0:00:26.4]} 29... Nc8 {[%clk 0:00:48.3]} 30. Nd4 {[%clk 0:00:26.5]} 30...
Re5 {[%clk 0:00:47.6]} 31. Nb5 {[%clk 0:00:20.3]} 31... Bf8 {[%clk 0:00:46.1]}
32. Rc3 {[%clk 0:00:19]} 32... Qd8 {[%clk 0:00:12.6]} 33. Rc7 {[%clk 0:00:14.5]}
33... Nb6 {[%clk 0:00:10.4]} 34. Qc2 {[%clk 0:00:13.3]} 34... Bg7 {[%clk
0:00:07.5]} 35. Bb4 {[%clk 0:00:10.1]} 35... a6 {[%clk 0:00:07.5]} 36. Na3
{[%clk 0:00:08.1]} 36... Nd5 {[%clk 0:00:06.6]} 37. Bd2 {[%clk 0:00:07.3]} 37...
Nxc7 {[%clk 0:00:06.2]} 38. dxc7 {[%clk 0:00:07.6]} 38... Qc8 {[%clk 0:00:06.5]}
39. Qc4+ {[%clk 0:00:05.4]} 39... Kf8 {[%clk 0:00:06.3]} 40. Nc2 {[%clk
0:00:05.9]} 40... Re6 {[%clk 0:00:06.6]} 41. Ba5 {[%clk 0:00:06.4]} 41... Rc6
{[%clk 0:00:06.9]} 42. Qb4+ {[%clk 0:00:06.1]} 42... Kf7 {[%clk 0:00:06.9]} 43.
Nd4 {[%clk 0:00:06.8]} 43... Rc1+ {[%clk 0:00:05.9]} 44. Kh2 {[%clk 0:00:07.5]}
44... Bf8 {[%clk 0:00:06.1]} 45. Qb6 {[%clk 0:00:07.2]} 45... Bc5 {[%clk
0:00:06.1]} 46. Qe6+ {[%clk 0:00:07.2]} 46... Qxe6 {[%clk 0:00:06.1]} 47. Nxe6
{[%clk 0:00:08.1]} 47... Bd6 {[%clk 0:00:06.6]} 48. Nd8+ {[%clk 0:00:08.3]}
48... Ke7 {[%clk 0:00:07.2]} 49. Nxb7 {[%clk 0:00:07.4]} 49... Bxc7 {[%clk
0:00:08]} 50. Bb4+ {[%clk 0:00:05.4]} 50... Kd7 {[%clk 0:00:08.1]} 51. Nc5+
{[%clk 0:00:05]} 51... Kc6 {[%clk 0:00:08.6]} 52. Nxa6 {[%clk 0:00:05.2]} 52...
Rb1 {[%clk 0:00:08.3]} 53. Nxc7 {[%clk 0:00:05.2]} 53... Kxc7 {[%clk 0:00:06.8]}
54. Be7 {[%clk 0:00:06.1]} 54... Rxb3 {[%clk 0:00:06.4]} 55. Bxf6 {[%clk
0:00:06.7]} 55... h6 {[%clk 0:00:06.1]} 56. Bg7 {[%clk 0:00:06.5]} 56... Rb6
{[%clk 0:00:04.1]} 57. a5 {[%clk 0:00:03.7]} 57... Ra6 {[%clk 0:00:04.6]} 58.
Kh3 {[%clk 0:00:03.9]} 58... h5 {[%clk 0:00:02.8]} 59. g3 {[%clk 0:00:04]} 59...
fxg3 {[%clk 0:00:02.4]} 60. fxg3 {[%clk 0:00:03.3]} 60... Rxa5 {[%clk
0:00:03.1]} 61. Bf6 {[%clk 0:00:03.1]} 61... Kd7 {[%clk 0:00:03.2]} 62. Bc3
{[%clk 0:00:02.4]} 62... Rd5 {[%clk 0:00:02.9]} 63. Bf6 {[%clk 0:00:01.5]} 63...
Ke6 {[%clk 0:00:03.3]} 64. Bc3 {[%clk 0:00:01.1]} 64... Kf5 {[%clk 0:00:03.9]}
0-1

[Event "*** SCC Grand Prix: Titled Tuesday Blitz"]
[Site "Chess.com"]
[Date "2020.07.14"]
[Round "3"]
[White "RobPeresian"]
[Black "denispopov"]
[Result "1-0"]
[WhiteElo "2237"]
[BlackElo "1747"]
[TimeControl "180+1"]
[EndTime "10:30:01 PDT"]
[Termination "RobPeresian won by checkmate"]

1. e4 {[%clk 0:03:00.9]} 1... c5 {[%clk 0:02:58.4]} 2. Nf3 {[%clk 0:03:01.2]}
2... Nc6 {[%clk 0:02:56.4]} 3. Bb5 {[%clk 0:03:00.8]} 3... g6 {[%clk 0:02:56.1]}
4. O-O {[%clk 0:02:56.4]} 4... Bg7 {[%clk 0:02:55.6]} 5. Re1 {[%clk 0:02:56.5]}
5... Nf6 {[%clk 0:02:46.6]} 6. e5 {[%clk 0:02:55]} 6... Nd5 {[%clk 0:02:46.5]}
7. Nc3 {[%clk 0:02:54.1]} 7... Nc7 {[%clk 0:02:45.3]} 8. Bf1 {[%clk 0:02:53.1]}
8... O-O {[%clk 0:02:43.9]} 9. d3 {[%clk 0:02:52.3]} 9... Ne6 {[%clk 0:02:40.3]}
10. Be3 {[%clk 0:02:44.2]} 10... b6 {[%clk 0:02:33.8]} 11. Bd2 {[%clk
0:01:33.2]} 11... Bb7 {[%clk 0:02:08.5]} 12. h4 {[%clk 0:01:14.6]} 12... h5
{[%clk 0:01:53.6]} 13. g3 {[%clk 0:00:55.7]} 13... d6 {[%clk 0:01:37.1]} 14.
exd6 {[%clk 0:00:52.3]} 14... exd6 {[%clk 0:01:38]} 15. Ng5 {[%clk 0:00:42.8]}
15... Ncd4 {[%clk 0:01:30.4]} 16. Bg2 {[%clk 0:00:33.2]} 16... Bxg2 {[%clk
0:01:24.7]} 17. Kxg2 {[%clk 0:00:34.1]} 17... Qc7 {[%clk 0:01:00.6]} 18. Nd5
{[%clk 0:00:16.8]} 18... Qb7 {[%clk 0:00:56.2]} 19. c4 {[%clk 0:00:16.3]} 19...
b5 {[%clk 0:00:42.1]} 20. Bc3 {[%clk 0:00:14.7]} 20... b4 {[%clk 0:00:38.3]} 21.
Bxd4 {[%clk 0:00:12.2]} 21... Nxd4 {[%clk 0:00:39.2]} 22. Nf3 {[%clk 0:00:08.2]}
22... Rae8 {[%clk 0:00:18.5]} 23. Nxd4 {[%clk 0:00:07]} 23... Bxd4 {[%clk
0:00:19.4]} 24. Rb1 {[%clk 0:00:06.5]} 24... Kg7 {[%clk 0:00:15.4]} 25. Qf3
{[%clk 0:00:06.1]} 25... Re6 {[%clk 0:00:12.8]} 26. Re4 {[%clk 0:00:04.7]} 26...
Rxe4 {[%clk 0:00:12.5]} 27. Qxe4 {[%clk 0:00:03.6]} 27... Rd8 {[%clk 0:00:11.6]}
28. b3 {[%clk 0:00:02.7]} 28... Qd7 {[%clk 0:00:11.5]} 29. Re1 {[%clk
0:00:02.2]} 29... Qf5 {[%clk 0:00:11.2]} 30. Qxf5 {[%clk 0:00:02.2]} 30... gxf5
{[%clk 0:00:12.1]} 31. Re7 {[%clk 0:00:02.3]} 31... Bf6 {[%clk 0:00:11.7]} 32.
Rxa7 {[%clk 0:00:02.2]} 32... Re8 {[%clk 0:00:11.6]} 33. Nf4 {[%clk 0:00:02.4]}
33... Be5 {[%clk 0:00:07.6]} 34. Nxh5+ {[%clk 0:00:02.3]} 34... Kg6 {[%clk
0:00:08.3]} 35. Nf4+ {[%clk 0:00:02.3]} 35... Bxf4 {[%clk 0:00:08.8]} 36. gxf4
{[%clk 0:00:03.2]} 36... Kh5 {[%clk 0:00:09.2]} 37. Rxf7 {[%clk 0:00:02.4]}
37... Rg8+ {[%clk 0:00:08.2]} 38. Kf3 {[%clk 0:00:02]} 38... Kg6 {[%clk
0:00:06.4]} 39. Rd7 {[%clk 0:00:01.6]} 39... Ra8 {[%clk 0:00:06.4]} 40. Rxd6+
{[%clk 0:00:02]} 40... Kf7 {[%clk 0:00:05.4]} 41. Rd5 {[%clk 0:00:02.9]} 41...
Rxa2 {[%clk 0:00:05.5]} 42. Rxf5+ {[%clk 0:00:03.5]} 42... Kg6 {[%clk
0:00:06.4]} 43. Rxc5 {[%clk 0:00:04.1]} 43... Rb2 {[%clk 0:00:06.7]} 44. Rb5
{[%clk 0:00:04.2]} 44... Rxb3 {[%clk 0:00:07.6]} 45. Ke4 {[%clk 0:00:04.5]}
45... Rb2 {[%clk 0:00:06.9]} 46. d4 {[%clk 0:00:04.6]} 46... Re2+ {[%clk
0:00:07.1]} 47. Kd5 {[%clk 0:00:04.8]} 47... Rxf2 {[%clk 0:00:07.2]} 48. c5
{[%clk 0:00:03.9]} 48... Rb2 {[%clk 0:00:07]} 49. Kc4 {[%clk 0:00:03.9]} 49...
Kf6 {[%clk 0:00:04.7]} 50. Rxb4 {[%clk 0:00:04.3]} 50... Rc2+ {[%clk 0:00:05.4]}
51. Kd5 {[%clk 0:00:04.6]} 51... Rc1 {[%clk 0:00:06.3]} 52. Rb6+ {[%clk
0:00:04.7]} 52... Ke7 {[%clk 0:00:06.7]} 53. h5 {[%clk 0:00:04.2]} 53... Rh1
{[%clk 0:00:04.1]} 54. h6 {[%clk 0:00:04.4]} 54... Kd7 {[%clk 0:00:04.9]} 55.
Rg6 {[%clk 0:00:03.7]} 55... Kc7 {[%clk 0:00:04.5]} 56. Rg7+ {[%clk 0:00:03.3]}
56... Kb8 {[%clk 0:00:03.9]} 57. h7 {[%clk 0:00:03.8]} 57... Ka8 {[%clk
0:00:02.2]} 58. Rg8+ {[%clk 0:00:03.3]} 58... Kb7 {[%clk 0:00:03.1]} 59. h8=Q
{[%clk 0:00:03.8]} 59... Rxh8 {[%clk 0:00:04]} 60. Rxh8 {[%clk 0:00:04]} 60...
Ka6 {[%clk 0:00:04.9]} 61. Rh6+ {[%clk 0:00:03.9]} 61... Ka5 {[%clk 0:00:05.8]}
62. c6 {[%clk 0:00:03.5]} 62... Ka4 {[%clk 0:00:06.7]} 63. c7 {[%clk 0:00:03.7]}
63... Kb3 {[%clk 0:00:07.6]} 64. c8=Q {[%clk 0:00:04.1]} 64... Kb2 {[%clk
0:00:07.8]} 65. Rb6+ {[%clk 0:00:04.2]} 65... Ka2 {[%clk 0:00:08.1]} 66. Qa8#
{[%clk 0:00:05.1]} 1-0

[Event "*** SCC Grand Prix: Titled Tuesday Blitz"]
[Site "Chess.com"]
[Date "2020.07.14"]
[Round "3"]
[White "Mr_Sinigami"]
[Black "nrvisakh"]
[Result "0-1"]
[WhiteElo "2579"]
[BlackElo "2776"]
[TimeControl "180+1"]
[EndTime "10:30:02 PDT"]
[Termination "nrvisakh won on time"]

1. d4 {[%clk 0:03:00.9]} 1... Nf6 {[%clk 0:02:59.7]} 2. Nf3 {[%clk 0:03:01]}
2... g6 {[%clk 0:02:59.7]} 3. Bf4 {[%clk 0:03:00.3]} 3... Bg7 {[%clk 0:02:59.5]}
4. e3 {[%clk 0:02:59.9]} 4... O-O {[%clk 0:02:59.6]} 5. h3 {[%clk 0:03:00.1]}
5... d6 {[%clk 0:02:59.7]} 6. Be2 {[%clk 0:02:59.9]} 6... Nbd7 {[%clk
0:02:58.3]} 7. O-O {[%clk 0:02:59.3]} 7... Qe8 {[%clk 0:02:58.3]} 8. c4 {[%clk
0:02:52.4]} 8... e5 {[%clk 0:02:58.1]} 9. Bh2 {[%clk 0:02:51.9]} 9... Qe7 {[%clk
0:02:42.3]} 10. Nc3 {[%clk 0:02:49.9]} 10... e4 {[%clk 0:02:41.6]} 11. Nd2
{[%clk 0:02:47.8]} 11... Re8 {[%clk 0:02:40.1]} 12. a3 {[%clk 0:02:26.3]} 12...
h5 {[%clk 0:02:38.8]} 13. b4 {[%clk 0:02:21.7]} 13... Nf8 {[%clk 0:02:38.5]} 14.
Rc1 {[%clk 0:02:11.7]} 14... g5 {[%clk 0:02:33]} 15. Bxh5 {[%clk 0:01:58.7]}
15... Nxh5 {[%clk 0:02:17]} 16. Qxh5 {[%clk 0:01:57.7]} 16... Bf5 {[%clk
0:02:17.9]} 17. c5 {[%clk 0:01:44.5]} 17... Bg6 {[%clk 0:02:12.4]} 18. Qe2
{[%clk 0:01:39.2]} 18... dxc5 {[%clk 0:02:01.5]} 19. Nd5 {[%clk 0:01:34.7]}
19... Qd7 {[%clk 0:02:01.3]} 20. Nxc7 {[%clk 0:01:33.7]} 20... cxd4 {[%clk
0:02:00.8]} 21. Nxa8 {[%clk 0:01:17.4]} 21... Rxa8 {[%clk 0:01:59.4]} 22. exd4
{[%clk 0:01:12.1]} 22... Ne6 {[%clk 0:01:37.4]} 23. Nb3 {[%clk 0:01:09.9]} 23...
Nf4 {[%clk 0:01:24.9]} 24. Bxf4 {[%clk 0:01:01.6]} 24... gxf4 {[%clk 0:01:24.6]}
25. Qg4 {[%clk 0:00:58.8]} 25... Qd5 {[%clk 0:01:13.7]} 26. Rc3 {[%clk
0:00:48.5]} 26... f3 {[%clk 0:01:07.3]} 27. Rfc1 {[%clk 0:00:43.4]} 27... Bh6
{[%clk 0:00:53.9]} 28. Rc8+ {[%clk 0:00:29.6]} 28... Rxc8 {[%clk 0:00:53.1]} 29.
Rxc8+ {[%clk 0:00:30.2]} 29... Kh7 {[%clk 0:00:52.4]} 30. Rc3 {[%clk 0:00:30.5]}
30... Bh5 {[%clk 0:00:36.1]} 31. Qg3 {[%clk 0:00:23.3]} 31... fxg2 {[%clk
0:00:21.5]} 32. Qe5 {[%clk 0:00:22.5]} 32... Qxe5 {[%clk 0:00:15.2]} 33. dxe5
{[%clk 0:00:22.3]} 33... Bf4 {[%clk 0:00:09.4]} 34. e6 {[%clk 0:00:15.5]} 34...
fxe6 {[%clk 0:00:07.5]} 35. Nc5 {[%clk 0:00:15.7]} 35... Bf3 {[%clk 0:00:06]}
36. Nxe6 {[%clk 0:00:13.5]} 36... Be5 {[%clk 0:00:06.1]} 37. Re3 {[%clk
0:00:12.4]} 37... Kg6 {[%clk 0:00:04.7]} 38. Nc5 {[%clk 0:00:10.9]} 38... Kf5
{[%clk 0:00:04.7]} 39. Nxb7 {[%clk 0:00:10.4]} 39... Bd4 {[%clk 0:00:04.8]} 40.
Re1 {[%clk 0:00:10.1]} 40... Kf4 {[%clk 0:00:04.7]} 41. Nc5 {[%clk 0:00:09.4]}
41... Bb2 {[%clk 0:00:03.9]} 42. a4 {[%clk 0:00:07.8]} 42... Bc3 {[%clk
0:00:04]} 43. Rb1 {[%clk 0:00:06.7]} 43... e3 {[%clk 0:00:04.4]} 44. Nd3+ {[%clk
0:00:04.1]} 44... Ke4 {[%clk 0:00:04.2]} 45. Nc5+ {[%clk 0:00:03.9]} 45... Kf4
{[%clk 0:00:03.3]} 46. Nd3+ {[%clk 0:00:03.4]} 46... Ke4 {[%clk 0:00:03.5]} 47.
Nc5+ {[%clk 0:00:02.8]} 47... Kd4 {[%clk 0:00:03.7]} 48. Ne6+ {[%clk 0:00:01.1]}
48... Kd3 {[%clk 0:00:03.4]} 49. Nc5+ {[%clk 0:00:01.6]} 49... Kc2 {[%clk
0:00:03]} 50. Rb3 {[%clk 0:00:01.8]} 50... e2 {[%clk 0:00:02.3]} 51. Rxc3+
{[%clk 0:00:01.3]} 51... Kxc3 {[%clk 0:00:03.2]} 52. Nd3 {[%clk 0:00:01.5]}
52... Kxd3 {[%clk 0:00:03.3]} 53. Kh2 {[%clk 0:00:02.4]} 53... e1=Q {[%clk
0:00:04.2]} 0-1

[Event "*** SCC Grand Prix: Titled Tuesday Blitz"]
[Site "Chess.com"]
[Date "2020.07.14"]
[Round "3"]
[White "SavelievAlexei"]
[Black "MomchilPetkov"]
[Result "0-1"]
[WhiteElo "2388"]
[BlackElo "2578"]
[TimeControl "180+1"]
[EndTime "10:30:02 PDT"]
[Termination "MomchilPetkov won by resignation"]

1. e4 {[%clk 0:03:00.9]} 1... c5 {[%clk 0:02:58.5]} 2. Nf3 {[%clk 0:02:39.2]}
2... d6 {[%clk 0:02:57.5]} 3. Nc3 {[%clk 0:02:39.5]} 3... a6 {[%clk 0:02:53.7]}
4. d4 {[%clk 0:02:39.7]} 4... cxd4 {[%clk 0:02:51.8]} 5. Nxd4 {[%clk 0:02:40.6]}
5... Nf6 {[%clk 0:02:51.1]} 6. Be2 {[%clk 0:02:40.8]} 6... e5 {[%clk 0:02:48.4]}
7. Nb3 {[%clk 0:02:41]} 7... Be7 {[%clk 0:02:44.6]} 8. Be3 {[%clk 0:02:40.9]}
8... Be6 {[%clk 0:02:44.5]} 9. Nd5 {[%clk 0:02:40.9]} 9... Nbd7 {[%clk
0:02:28.8]} 10. Qd3 {[%clk 0:02:34.8]} 10... Bxd5 {[%clk 0:02:27.4]} 11. exd5
{[%clk 0:02:34.8]} 11... O-O {[%clk 0:02:27.4]} 12. O-O {[%clk 0:02:34.5]} 12...
Rc8 {[%clk 0:02:26.1]} 13. c4 {[%clk 0:02:34]} 13... Ne8 {[%clk 0:02:15.3]} 14.
Qd2 {[%clk 0:02:31.6]} 14... b6 {[%clk 0:02:10.5]} 15. Rac1 {[%clk 0:02:29.7]}
15... a5 {[%clk 0:02:07.2]} 16. Na1 {[%clk 0:02:29.9]} 16... g6 {[%clk
0:01:59.7]} 17. a3 {[%clk 0:02:29.6]} 17... a4 {[%clk 0:01:54.1]} 18. Nc2 {[%clk
0:02:28.8]} 18... Ng7 {[%clk 0:01:53]} 19. Nb4 {[%clk 0:02:27.4]} 19... Nc5
{[%clk 0:01:53]} 20. Nc6 {[%clk 0:02:24.5]} 20... Qe8 {[%clk 0:01:50.9]} 21. Bd1
{[%clk 0:02:14.1]} 21... Ra8 {[%clk 0:01:26.4]} 22. Qb4 {[%clk 0:02:13.3]} 22...
Nd3 {[%clk 0:01:21.2]} 23. Qxb6 {[%clk 0:02:13]} 23... Nxc1 {[%clk 0:01:18.7]}
24. Bxc1 {[%clk 0:02:13.9]} 24... Nf5 {[%clk 0:01:06]} 25. Bd2 {[%clk
0:02:01.9]} 25... Bd8 {[%clk 0:01:00]} 26. Qb7 {[%clk 0:01:55.8]} 26... Bf6
{[%clk 0:00:56.6]} 27. Ba5 {[%clk 0:01:37.9]} 27... Nd4 {[%clk 0:00:52]} 28. Bb4
{[%clk 0:01:20.8]} 28... Qc8 {[%clk 0:00:43]} 29. Qxc8 {[%clk 0:00:52]} 29...
Rfxc8 {[%clk 0:00:43.9]} 30. Bg4 {[%clk 0:00:51.8]} 30... Nxc6 {[%clk 0:00:34]}
31. dxc6 {[%clk 0:00:51.4]} 31... Rxc6 {[%clk 0:00:24.5]} 32. Bf3 {[%clk
0:00:51.5]} 32... Rac8 {[%clk 0:00:25.4]} 33. Bxc6 {[%clk 0:00:51.3]} 33... Rxc6
{[%clk 0:00:26.3]} 34. Rc1 {[%clk 0:00:46]} 34... e4 {[%clk 0:00:26.5]} 35. Rc2
{[%clk 0:00:23.6]} 35... d5 {[%clk 0:00:22.2]} 36. c5 {[%clk 0:00:23.1]} 36...
d4 {[%clk 0:00:20]} 37. Kf1 {[%clk 0:00:23.3]} 37... d3 {[%clk 0:00:20]} 38. Rc4
{[%clk 0:00:23.6]} 38... Bxb2 {[%clk 0:00:12]} 39. Rxe4 {[%clk 0:00:22.1]} 39...
d2 {[%clk 0:00:10.5]} 40. Ke2 {[%clk 0:00:21.7]} 40... Bc1 {[%clk 0:00:08.4]}
41. Rd4 {[%clk 0:00:08.7]} 41... Kg7 {[%clk 0:00:07]} 42. Rd6 {[%clk 0:00:07]}
42... Rc8 {[%clk 0:00:07.5]} 43. c6 {[%clk 0:00:06.8]} 43... Re8+ {[%clk
0:00:07.5]} 44. Kd1 {[%clk 0:00:05.8]} 44... Rc8 {[%clk 0:00:05.6]} 45. Kc2
{[%clk 0:00:03.3]} 45... f6 {[%clk 0:00:05.4]} 46. Bc3 {[%clk 0:00:02.6]} 46...
Bxa3 {[%clk 0:00:03.2]} 47. Rxf6 {[%clk 0:00:02.5]} 47... Kg8 {[%clk 0:00:04.1]}
48. Kxd2 {[%clk 0:00:02.3]} 48... Be7 {[%clk 0:00:04.4]} 49. Re6 {[%clk
0:00:02.4]} 49... Kf7 {[%clk 0:00:04.9]} 50. Re4 {[%clk 0:00:02.3]} 50... a3
{[%clk 0:00:04.4]} 51. Rc4 {[%clk 0:00:01.9]} 51... Ke6 {[%clk 0:00:04.8]} 52.
Kc2 {[%clk 0:00:02]} 52... Kd5 {[%clk 0:00:05.2]} 53. Rd4+ {[%clk 0:00:02.3]}
53... Kxc6 {[%clk 0:00:05.6]} 54. Rc4+ {[%clk 0:00:02.9]} 54... Kd7 {[%clk
0:00:06.1]} 55. Rxc8 {[%clk 0:00:03.8]} 55... Kxc8 {[%clk 0:00:07]} 56. Kb3
{[%clk 0:00:04.7]} 56... Kd7 {[%clk 0:00:07.6]} 57. Bd2 {[%clk 0:00:05.3]} 57...
Ke6 {[%clk 0:00:07.9]} 58. Bc1 {[%clk 0:00:06]} 58... Bd6 {[%clk 0:00:08.2]} 59.
h3 {[%clk 0:00:04.4]} 59... Bc5 {[%clk 0:00:08.3]} 60. f3 {[%clk 0:00:04.2]}
60... Kd5 {[%clk 0:00:08.2]} 61. Bxa3 {[%clk 0:00:04.2]} 61... Bxa3 {[%clk
0:00:08.5]} 62. Kxa3 {[%clk 0:00:05.1]} 62... Kd4 {[%clk 0:00:09.4]} 63. Kb3
{[%clk 0:00:04.4]} 63... Ke3 {[%clk 0:00:09.9]} 64. Kc4 {[%clk 0:00:04.5]} 64...
Kf2 {[%clk 0:00:10.4]} 65. Kd4 {[%clk 0:00:05.2]} 65... Kxg2 {[%clk 0:00:10.6]}
0-1